[Event "MČR družstev mladších žáků 2024"]
[Site "Harrachov, Czech Republic"]
[Date "2024.06.15"]
[Round "6.26"]
[White "Lutskiy Mikhail"]
[Black "Trejbal Jindrich"]
[Result "1-0"]
[TimeControl "25+10"]
[WhiteFideId "23744308"]
[BlackFideId "23743948"]
[WhiteElo "1446"]
[BlackElo "1401"]

1. e4 {[%clk 00:25:18]} e5 {[%clk 00:25:19]} {[%emt 00:00:01]} 2. Nf3 {[%clk
00:25:27]} {[%emt 00:00:02]} Nf6 {[%clk 00:25:28]} 3. Nc3 {[%clk 00:25:34]}
{[%emt 00:00:03]} Bb4 {[%clk 00:25:37]} {[%emt 00:00:01]} 4. Bc4 {[%clk
00:25:40]} {[%emt 00:00:04]} O-O {[%clk 00:25:40]} {[%emt 00:00:08]} 5. O-O
{[%clk 00:25:37]} {[%emt 00:00:13]} Nc6 {[%clk 00:25:33]} {[%emt 00:00:16]} 6.
d3 {[%clk 00:25:40]} {[%emt 00:00:08]} d6 {[%clk 00:25:32]} {[%emt 00:00:10]} 7.
h3 {[%clk 00:25:36]} {[%emt 00:00:14]} Be6 {[%clk 00:25:38]} {[%emt 00:00:04]}
8. Bb3 {[%clk 00:25:42]} {[%emt 00:00:04]} Bxc3 {[%clk 00:25:10]} {[%emt
00:00:37]} 9. bxc3 {[%clk 00:25:49]} {[%emt 00:00:04]} Bxb3 {[%clk 00:25:02]}
{[%emt 00:00:18]} 10. cxb3 {[%clk 00:25:50]} {[%emt 00:00:09]} d5 {[%clk
00:24:53]} {[%emt 00:00:20]} 11. exd5 {[%clk 00:25:48]} {[%emt 00:00:11]} Nxd5
{[%clk 00:24:50]} {[%emt 00:00:14]} 12. Bb2 {[%clk 00:25:43]} {[%emt 00:00:15]}
Nf4 {[%clk 00:24:03]} {[%emt 00:00:57]} 13. d4 {[%clk 00:25:46]} {[%emt
00:00:06]} e4 {[%clk 00:23:14]} {[%emt 00:00:59]} 14. Nd2 {[%clk 00:25:37]}
{[%emt 00:00:18]} Qg5 {[%clk 00:22:19]} {[%emt 00:01:07]} 15. Qg4 {[%clk
00:25:11]} {[%emt 00:00:35]} Qxg4 {[%clk 00:22:08]} {[%emt 00:00:21]} 16. hxg4
{[%clk 00:25:18]} {[%emt 00:00:03]} f5 {[%clk 00:22:01]} {[%emt 00:00:18]} 17.
gxf5 {[%clk 00:24:31]} {[%emt 00:00:57]} Rxf5 {[%clk 00:22:08]} {[%emt
00:00:02]} 18. g3 {[%emt 00:02:05]} Nd3 {[%clk 00:20:15]} 19. Ba3 {[%clk
00:24:37]} {[%emt 00:00:10]} Re8 {[%clk 00:19:45]} {[%emt 00:00:42]} 20. Rad1
{[%clk 00:23:49]} {[%emt 00:00:58]} Nxf2 {[%clk 00:16:41]} {[%emt 00:03:15]} 21.
Rxf2 {[%clk 00:23:31]} {[%emt 00:00:28]} Rxf2 {[%clk 00:16:38]} {[%emt
00:00:12]} 22. Kxf2 {[%clk 00:23:39]} {[%emt 00:00:02]} e3+ {[%clk 00:16:47]}
23. Kg2 {[%clk 00:23:41]} {[%emt 00:00:06]} exd2 {[%clk 00:16:34]} {[%emt
00:00:25]} 24. Rxd2 {[%clk 00:23:50]} {[%emt 00:00:02]} Re3 {[%clk 00:16:07]}
{[%emt 00:00:36]} 25. c4 {[%clk 00:22:56]} {[%emt 00:01:04]} Re4 {[%clk
00:15:31]} {[%emt 00:00:46]} 26. d5 {[%clk 00:22:44]} {[%emt 00:00:22]} Nd4
{[%clk 00:15:03]} {[%emt 00:00:38]} 27. Bc5 {[%clk 00:22:06]} {[%emt 00:00:49]}
Nf5 {[%clk 00:14:44]} {[%emt 00:00:29]} 28. Kf3 {[%clk 00:21:58]} {[%emt
00:00:17]} Re8 {[%clk 00:14:31]} {[%emt 00:00:22]} 29. Rf2 {[%clk 00:21:47]}
{[%emt 00:00:20]} Nd6 {[%clk 00:14:13]} {[%emt 00:00:30]} 30. Bxa7 {[%clk
00:21:08]} {[%emt 00:00:49]} b6 {[%clk 00:13:54]} {[%emt 00:00:29]} 31. c5
{[%clk 00:21:14]} {[%emt 00:00:04]} Rf8+ {[%clk 00:14:01]} {[%emt 00:00:03]} 32.
Kg2 {[%clk 00:21:09]} {[%emt 00:00:15]} Rxf2+ {[%clk 00:14:09]} {[%emt
00:00:03]} 33. Kxf2 {[%clk 00:21:18]} {[%emt 00:00:01]} Ne4+ {[%clk 00:14:17]}
{[%emt 00:00:02]} 34. Ke3 {[%clk 00:21:20]} {[%emt 00:00:07]} Nxc5 {[%clk
00:14:24]} {[%emt 00:00:02]} 35. d6 {[%clk 00:21:08]} {[%emt 00:00:23]} cxd6
{[%clk 00:14:05]} {[%emt 00:00:29]} 36. Bxb6 {[%clk 00:21:16]} {[%emt
00:00:02]} Kf7 {[%clk 00:13:22]} {[%emt 00:00:54]} 37. Bxc5 {[%clk 00:21:19]}
{[%emt 00:00:07]} dxc5 {[%clk 00:13:31]} 38. a4 {[%clk 00:21:23]} {[%emt
00:00:07]} Ke7 {[%clk 00:13:40]} {[%emt 00:00:01]} 39. Ke4 {[%clk 00:21:18]}
{[%emt 00:00:05]} Kd6 {[%clk 00:13:37]} {[%emt 00:00:13]} 40. a5 {[%clk
00:21:14]} {[%emt 00:00:24]} Kc6 {[%clk 00:13:46]} {[%emt 00:00:01]} 41. a6
{[%clk 00:21:20]} {[%emt 00:00:04]} Kb6 {[%clk 00:13:54]} {[%emt 00:00:02]} 42.
Kd5 {[%clk 00:21:28]} {[%emt 00:00:01]} g5 {[%clk 00:13:36]} {[%emt 00:00:28]}
43. g4 {[%clk 00:20:51]} {[%emt 00:00:48]} Kxa6 {[%clk 00:12:41]} {[%emt
00:01:05]} 44. Kxc5 {[%clk 00:20:58]} {[%emt 00:00:02]} Ka5 {[%clk 00:12:17]}
{[%emt 00:00:34]} 45. b4+ {[%clk 00:20:59]} {[%emt 00:00:10]} Ka4 {[%clk
00:10:44]} {[%emt 00:01:42]} 46. b5 {[%clk 00:21:01]} {[%emt 00:00:08]} Ka5
{[%clk 00:10:53]} {[%emt 00:00:01]} 47. b6 {[%clk 00:21:06]} {[%emt 00:00:05]}
Ka6 {[%clk 00:10:53]} {[%emt 00:00:10]} 48. Kc6 {[%clk 00:21:15]} {[%emt
00:00:01]} h5 {[%clk 00:11:03]} 49. gxh5 {[%clk 00:21:12]} {[%emt 00:00:14]} g4
{[%clk 00:11:11]} 50. h6 {[%clk 00:21:14]} {[%emt 00:00:09]} g3 {[%clk
00:11:12]} {[%emt 00:00:08]} 51. h7 {[%clk 00:21:23]} {[%emt 00:00:01]} 1-0



[ePGN "0.1;DGT LiveChess/2.2.6"]

[Event "MČR družstev mladších žáků 2024"]
[Site "Harrachov, Czech Republic"]
[Date "2024.06.15"]
[Round "6.27"]
[White "Bartak Tobias"]
[Black "Cerny Ren"]
[Result "1/2-1/2"]
[TimeControl "25+10"]
[WhiteFideId "23753544"]
[BlackFideId "23754559"]
[WhiteElo "1260"]
[BlackElo "1317"]

1. e4 {[%clk 00:25:15]} {[%emt 00:00:04]} e5 {[%clk 00:25:18]} {[%emt
00:00:03]} 2. Nf3 {[%clk 00:25:20]} {[%emt 00:00:05]} Nf6 {[%clk 00:25:25]}
{[%emt 00:00:03]} 3. Nc3 {[%clk 00:25:18]} {[%emt 00:00:12]} Bb4 {[%clk
00:25:30]} {[%emt 00:00:05]} 4. Bc4 {[%clk 00:25:14]} {[%emt 00:00:13]} d6
{[%clk 00:25:37]} {[%emt 00:00:03]} 5. O-O {[%clk 00:24:40]} {[%emt 00:00:45]}
O-O {[%clk 00:25:30]} {[%emt 00:00:16]} 6. d3 {[%clk 00:24:17]} {[%emt
00:00:34]} h6 {[%clk 00:25:28]} {[%emt 00:00:12]} 7. h3 {[%clk 00:23:46]}
{[%emt 00:00:40]} Nc6 {[%clk 00:24:58]} {[%emt 00:00:40]} 8. Be3 {[%clk
00:23:20]} {[%emt 00:00:36]} Na5 {[%clk 00:20:32]} {[%emt 00:04:36]} 9. Bb3
{[%clk 00:18:49]} {[%emt 00:04:43]} Nxb3 {[%clk 00:19:27]} {[%emt 00:01:14]} 10.
axb3 {[%emt 00:00:33]} Be6 {[%clk 00:18:49]} {[%emt 00:00:45]} 11. Rxa7 {[%clk
00:13:58]} {[%emt 00:04:42]} Rxa7 {[%clk 00:18:41]} {[%emt 00:00:17]} 12. Bxa7
{[%clk 00:14:06]} {[%emt 00:00:02]} b6 {[%clk 00:18:23]} {[%emt 00:00:28]} 13.
Qa1 {[%clk 00:13:41]} {[%emt 00:00:34]} Ba5 {[%clk 00:17:52]} {[%emt 00:00:42]}
14. b4 {[%clk 00:13:06]} {[%emt 00:00:45]} Bxb4 {[%clk 00:17:36]} {[%emt
00:00:26]} 15. Qa6 {[%clk 00:13:11]} {[%emt 00:00:05]} Ba5 {[%clk 00:17:15]}
{[%emt 00:00:30]} 16. Qb7 {[%clk 00:09:52]} {[%emt 00:03:30]} Qc8 {[%clk
00:16:36]} {[%emt 00:00:49]} 17. Qxc8 {[%clk 00:07:27]} {[%emt 00:02:35]} Rxc8
{[%clk 00:16:41]} {[%emt 00:00:04]} 18. Nb5 {[%clk 00:07:20]} {[%emt 00:00:18]}
Ra8 {[%clk 00:16:32]} {[%emt 00:00:19]} 19. Ra1 {[%clk 00:07:19]} {[%emt
00:00:10]} Bd7 {[%clk 00:12:36]} {[%emt 00:04:06]} 20. Nc3 {[%clk 00:06:21]}
{[%emt 00:01:09]} Bc6 {[%clk 00:11:16]} {[%emt 00:01:30]} 21. Ne2 {[%clk
00:04:45]} {[%emt 00:01:46]} Rxa7 {[%clk 00:11:02]} {[%emt 00:00:23]} 22. b4
{[%clk 00:04:48]} {[%emt 00:00:07]} Ra8 {[%clk 00:10:33]} {[%emt 00:00:40]} 23.
bxa5 {[%clk 00:04:51]} {[%emt 00:00:07]} Rxa5 {[%clk 00:10:36]} {[%emt
00:00:06]} 24. Rb1 {[%clk 00:04:14]} {[%emt 00:00:48]} Ra2 {[%clk 00:10:22]}
{[%emt 00:00:24]} 25. Ne1 {[%clk 00:03:57]} {[%emt 00:00:27]} Ba4 {[%clk
00:10:04]} {[%emt 00:00:27]} 26. Rc1 {[%clk 00:03:11]} {[%emt 00:00:58]} Kf8
{[%clk 00:09:33]} {[%emt 00:00:40]} 27. Nc3 {[%clk 00:03:08]} {[%emt 00:00:13]}
Ra3 {[%clk 00:09:37]} {[%emt 00:00:04]} 28. Nxa4 {[%clk 00:03:12]} {[%emt
00:00:07]} Rxa4 {[%clk 00:09:43]} {[%emt 00:00:04]} 29. Rb1 {[%clk 00:03:21]}
{[%emt 00:00:01]} Ke7 {[%clk 00:09:44]} {[%emt 00:00:09]} 30. Kh2 {[%clk
00:03:29]} {[%emt 00:00:02]} d5 {[%clk 00:08:16]} {[%emt 00:01:39]} 31. Rb5
{[%clk 00:02:52]} {[%emt 00:00:47]} Ke6 {[%clk 00:08:08]} {[%emt 00:00:17]} 32.
Nf3 {[%clk 00:02:11]} {[%emt 00:00:51]} Ra5 {[%clk 00:07:56]} {[%emt 00:00:22]}
33. exd5+ {[%clk 00:01:55]} {[%emt 00:00:26]} Nxd5 {[%clk 00:07:56]} {[%emt
00:00:10]} 34. Rb1 {[%clk 00:01:38]} {[%emt 00:00:27]} Nf6 {[%clk 00:06:44]}
{[%emt 00:01:23]} 1/2-1/2



[ePGN "0.1;DGT LiveChess/2.2.6"]

[Event "MČR družstev mladších žáků 2024"]
[Site "Harrachov, Czech Republic"]
[Date "2024.06.15"]
[Round "6.28"]
[White "Gao Tianle"]
[Black "Vratny Vojtech"]
[Result "0-1"]
[TimeControl "25+10"]
[WhiteFideId "23739924"]
[BlackFideId "23753692"]
[WhiteElo "1120"]
[BlackElo "1208"]

1. e4 {[%clk 00:25:18]} {[%emt 00:00:02]} c6 {[%clk 00:25:19]} {[%emt
00:00:01]} 2. Nf3 {[%clk 00:25:24]} {[%emt 00:00:05]} d5 {[%clk 00:25:28]} 3.
exd5 {[%clk 00:25:05]} {[%emt 00:00:29]} cxd5 {[%clk 00:25:36]} {[%emt
00:00:01]} 4. d4 {[%clk 00:25:14]} {[%emt 00:00:02]} Bg4 {[%clk 00:25:43]}
{[%emt 00:00:03]} 5. Be2 {[%clk 00:25:18]} {[%emt 00:00:06]} e6 {[%clk
00:25:50]} {[%emt 00:00:02]} 6. O-O {[%clk 00:25:21]} {[%emt 00:00:08]} Nf6
{[%clk 00:25:57]} {[%emt 00:00:02]} 7. Nc3 {[%clk 00:25:20]} {[%emt 00:00:12]}
Be7 {[%clk 00:25:59]} {[%emt 00:00:08]} 8. Bf4 {[%clk 00:25:19]} {[%emt
00:00:11]} O-O {[%clk 00:26:00]} {[%emt 00:00:08]} 9. h3 {[%clk 00:24:45]}
{[%emt 00:00:46]} Bxf3 {[%clk 00:25:29]} {[%emt 00:00:40]} 10. Bxf3 {[%clk
00:24:43]} {[%emt 00:00:11]} Nc6 {[%clk 00:25:34]} {[%emt 00:00:05]} 11. Bg5
{[%clk 00:19:57]} {[%emt 00:04:58]} h6 {[%clk 00:25:19]} {[%emt 00:00:22]} 12.
Bh4 {[%clk 00:19:56]} {[%emt 00:00:13]} a6 {[%clk 00:24:47]} {[%emt 00:00:38]}
13. a3 {[%clk 00:17:03]} {[%emt 00:03:08]} Qb6 {[%clk 00:21:41]} {[%emt
00:03:01]} 14. Na4 {[%clk 00:15:56]} {[%emt 00:01:32]} Qxd4 {[%clk 00:21:15]}
{[%emt 00:00:34]} 15. Qxd4 {[%clk 00:15:38]} {[%emt 00:00:30]} Nxd4 {[%clk
00:21:22]} {[%emt 00:00:02]} 16. Bd1 {[%clk 00:14:40]} {[%emt 00:01:09]} Nf5
{[%clk 00:20:45]} {[%emt 00:00:43]} 17. Bxf6 {[%clk 00:14:00]} {[%emt
00:00:53]} Bxf6 {[%clk 00:20:50]} {[%emt 00:00:04]} 18. Rb1 {[%clk 00:12:40]}
{[%emt 00:01:31]} b5 {[%clk 00:19:47]} {[%emt 00:01:09]} 19. Nc5 {[%clk
00:12:34]} {[%emt 00:00:20]} Rfd8 {[%clk 00:18:28]} {[%emt 00:01:24]} 20. c3
{[%clk 00:12:22]} {[%emt 00:00:27]} Be7 {[%clk 00:18:00]} {[%emt 00:00:34]} 21.
Nd3 {[%clk 00:12:25]} {[%emt 00:00:11]} d4 {[%clk 00:17:15]} {[%emt 00:00:53]}
22. cxd4 {[%clk 00:11:26]} {[%emt 00:01:11]} Rxd4 {[%clk 00:17:06]} {[%emt
00:00:19]} 23. Be2 {[%clk 00:10:00]} {[%emt 00:01:37]} Rc8 {[%clk 00:16:22]}
{[%emt 00:00:55]} 24. Rfc1 {[%clk 00:09:55]} {[%emt 00:00:33]} Rxc1+ {[%clk
00:16:06]} {[%emt 00:00:25]} 25. Rxc1 {[%clk 00:10:02]} {[%emt 00:00:04]} Rd8
{[%clk 00:16:01]} {[%emt 00:00:07]} 26. Rc7 {[%clk 00:08:00]} {[%emt 00:02:18]}
Bf6 {[%clk 00:15:20]} {[%emt 00:00:49]} 27. b4 {[%clk 00:07:50]} {[%emt
00:00:25]} Nd4 {[%clk 00:14:55]} {[%emt 00:00:33]} 28. Bf1 {[%clk 00:07:28]}
{[%emt 00:00:33]} Kf8 {[%clk 00:13:50]} {[%emt 00:01:01]} 29. Ra7 {[%clk
00:07:23]} {[%emt 00:00:29]} Rd6 {[%clk 00:12:33]} {[%emt 00:01:24]} 30. Ra8+
{[%clk 00:07:27]} {[%emt 00:00:10]} Bd8 {[%clk 00:12:08]} {[%emt 00:00:30]} 31.
Nc5 {[%clk 00:07:28]} {[%emt 00:00:12]} Ke7 {[%clk 00:09:11]} {[%emt 00:03:02]}
32. Ra7+ {[%clk 00:07:32]} {[%emt 00:00:11]} Ke8 {[%clk 00:08:39]} {[%emt
00:00:37]} 33. Ra8 {[%clk 00:07:21]} {[%emt 00:00:27]} Nc2 {[%clk 00:07:38]}
{[%emt 00:01:09]} 34. Nxa6 {[%clk 00:07:09]} {[%emt 00:00:25]} Rb6 {[%clk
00:05:51]} {[%emt 00:01:48]} 35. Nc5 {[%clk 00:07:08]} {[%emt 00:00:18]} Nd4
{[%clk 00:04:46]} {[%emt 00:01:13]} 36. Nb7 {[%clk 00:06:45]} {[%emt 00:00:36]}
Rxb7 {[%clk 00:04:34]} {[%emt 00:00:19]} 37. a4 {[%clk 00:06:40]} {[%emt
00:00:18]} bxa4 {[%clk 00:04:10]} {[%emt 00:00:33]} 38. Rxa4 {[%clk 00:06:47]}
{[%emt 00:00:04]} Be7 {[%clk 00:03:37]} {[%emt 00:00:39]} 39. b5 {[%clk
00:06:55]} {[%emt 00:00:06]} Nxb5 {[%clk 00:03:30]} {[%emt 00:00:16]} 40. Ra8+
{[%clk 00:06:56]} {[%emt 00:00:10]} Kd7 {[%clk 00:03:11]} {[%emt 00:00:12]} 41.
Ra5 {[%clk 00:06:56]} {[%emt 00:00:27]} Nd6 {[%clk 00:03:14]} {[%emt 00:00:07]}
42. Ba6 {[%clk 00:07:03]} {[%emt 00:00:03]} Ra7 {[%clk 00:02:52]} {[%emt
00:00:31]} 43. Ra4 {[%emt 00:00:12]} Rc7 {[%clk 00:02:46]} {[%emt 00:00:08]} 44.
Rd4 {[%clk 00:07:13]} {[%emt 00:00:07]} e5 {[%clk 00:02:27]} {[%emt 00:00:24]}
45. Bb5+ {[%clk 00:07:25]} {[%emt 00:00:14]} Ke6 {[%clk 00:02:33]} {[%emt
00:00:09]} 46. Rd3 {[%clk 00:07:33]} {[%emt 00:00:06]} Nxb5 {[%clk 00:02:40]}
{[%emt 00:00:03]} 47. Rb3 {[%clk 00:07:37]} {[%emt 00:00:06]} Nd4 {[%clk
00:02:45]} {[%emt 00:00:04]} 48. Rb6+ {[%clk 00:07:46]} {[%emt 00:00:02]} Rc6
{[%clk 00:02:52]} {[%emt 00:00:03]} 49. Rb7 {[%clk 00:07:51]} {[%emt 00:00:05]}
f5 {[%clk 00:02:43]} {[%emt 00:00:17]} 50. g3 {[%clk 00:07:59]} {[%emt
00:00:05]} g5 {[%clk 00:02:42]} {[%emt 00:00:09]} 51. h4 {[%clk 00:08:04]}
{[%emt 00:00:06]} gxh4 {[%clk 00:02:48]} {[%emt 00:00:05]} 52. f4 {[%clk
00:08:09]} {[%emt 00:00:05]} hxg3 {[%clk 00:02:38]} {[%emt 00:00:18]} 53. fxe5
{[%clk 00:08:17]} {[%emt 00:00:03]} Rc2 {[%clk 00:02:17]} {[%emt 00:00:26]} 54.
Rb6+ {[%clk 00:08:24]} {[%emt 00:00:08]} Kxe5 {[%clk 00:02:24]} {[%emt
00:00:04]} 55. Rb8 {[%clk 00:08:26]} {[%emt 00:00:08]} Nf3+ {[%clk 00:02:25]}
{[%emt 00:00:07]} 56. Kf1 {[%clk 00:08:35]} {[%emt 00:00:03]} g2# {[%clk
00:02:30]} {[%emt 00:00:04]} 0-1



[ePGN "0.1;DGT LiveChess/2.2.6"]

[Event "MČR družstev mladších žáků 2024"]
[Site "Harrachov, Czech Republic"]
[Date "2024.06.15"]
[Round "6.3"]
[White "Koutecky Vaclav"]
[Black "Kolar Edvard"]
[Result "0-1"]
[TimeControl "25+10"]
[WhiteFideId "23752602"]
[BlackFideId "23746238"]
[WhiteElo "1194"]
[BlackElo "1553"]

1. e4 {[%clk 00:25:19]} {[%emt 00:03:46]} c5 {[%clk 00:25:19]} {[%emt
00:00:02]} 2. d4 {[%clk 00:25:27]} {[%emt 00:00:01]} cxd4 {[%clk 00:25:25]}
{[%emt 00:00:05]} 3. c3 {[%clk 00:25:36]} {[%emt 00:00:01]} dxc3 {[%clk
00:25:09]} {[%emt 00:00:26]} 4. Nxc3 {[%clk 00:25:43]} {[%emt 00:00:03]} Nc6
{[%clk 00:25:15]} {[%emt 00:00:05]} 5. Bc4 {[%clk 00:25:48]} {[%emt 00:00:05]}
d6 {[%clk 00:25:19]} {[%emt 00:00:05]} 6. Nf3 {[%clk 00:25:56]} {[%emt
00:00:02]} g6 {[%clk 00:25:23]} {[%emt 00:00:06]} 7. O-O {[%clk 00:25:44]}
{[%emt 00:00:21]} Bg7 {[%clk 00:25:30]} {[%emt 00:00:03]} 8. Qe2 {[%clk
00:25:50]} {[%emt 00:00:02]} Nf6 {[%clk 00:25:34]} {[%emt 00:00:07]} 9. Bg5
{[%clk 00:25:54]} {[%emt 00:00:05]} O-O {[%clk 00:25:37]} {[%emt 00:00:08]} 10.
Rfd1 {[%clk 00:25:59]} {[%emt 00:00:05]} Bg4 {[%clk 00:25:23]} {[%emt
00:00:24]} 11. h3 {[%clk 00:25:23]} {[%emt 00:00:44]} Bxf3 {[%clk 00:24:50]}
{[%emt 00:00:45]} 12. Qxf3 {[%clk 00:25:24]} {[%emt 00:00:09]} Ne5 {[%clk
00:24:49]} {[%emt 00:00:11]} 13. Qe2 {[%clk 00:25:18]} {[%emt 00:00:12]} Rc8
{[%clk 00:24:37]} {[%emt 00:00:27]} 14. Bb3 {[%clk 00:25:11]} {[%emt 00:00:16]}
Qa5 {[%clk 00:23:13]} {[%emt 00:01:35]} 15. Bxf6 {[%clk 00:24:48]} {[%emt
00:00:33]} Bxf6 {[%clk 00:22:01]} {[%emt 00:01:22]} 16. Nd5 {[%clk 00:24:52]}
{[%emt 00:00:05]} Nd7 {[%clk 00:20:37]} {[%emt 00:01:35]} 17. Nxf6+ {[%clk
00:24:27]} {[%emt 00:00:35]} Nxf6 {[%clk 00:20:40]} {[%emt 00:00:07]} 18. Rac1
{[%clk 00:23:46]} {[%emt 00:00:52]} Qg5 {[%clk 00:19:54]} {[%emt 00:00:55]} 19.
Rxc8 {[%clk 00:22:18]} {[%emt 00:01:37]} Rxc8 {[%clk 00:19:59]} {[%emt
00:00:05]} 20. Qf3 {[%clk 00:21:58]} {[%emt 00:00:25]} Qe5 {[%clk 00:19:42]}
{[%emt 00:00:33]} 21. Rb1 {[%clk 00:19:41]} {[%emt 00:02:26]} e6 {[%clk
00:17:24]} {[%emt 00:02:30]} 22. Qd3 {[%clk 00:18:15]} {[%emt 00:01:25]} Nxe4
{[%clk 00:16:01]} {[%emt 00:01:43]} 23. Re1 {[%clk 00:17:53]} {[%emt 00:00:29]}
Nc5 {[%clk 00:16:01]} {[%emt 00:00:12]} 24. Qd1 {[%clk 00:17:19]} {[%emt
00:00:44]} Qxb2 {[%clk 00:13:41]} {[%emt 00:02:31]} 25. Re2 {[%clk 00:15:11]}
{[%emt 00:02:14]} Qc3 {[%clk 00:11:43]} {[%emt 00:02:05]} 26. Rc2 {[%clk
00:14:31]} {[%emt 00:00:56]} Qe5 {[%clk 00:10:47]} {[%emt 00:01:06]} 27. Re2
{[%clk 00:14:02]} {[%emt 00:00:35]} Qf4 {[%clk 00:10:32]} {[%emt 00:00:30]} 28.
g3 {[%clk 00:12:44]} {[%emt 00:01:28]} Qf3 {[%clk 00:10:27]} {[%emt 00:00:15]}
29. Qc2 {[%clk 00:12:10]} {[%emt 00:00:41]} Rc6 {[%clk 00:10:07]} {[%emt
00:00:32]} 30. Re3 {[%clk 00:11:15]} {[%emt 00:01:03]} Nxb3 {[%clk 00:09:25]}
{[%emt 00:00:53]} 31. Rxf3 {[%clk 00:10:37]} {[%emt 00:00:47]} Rxc2 {[%clk
00:09:24]} {[%emt 00:00:12]} 32. Rxb3 {[%clk 00:10:41]} {[%emt 00:00:06]} Rxa2
{[%clk 00:09:30]} {[%emt 00:00:03]} 33. Rxb7 {[%clk 00:10:48]} {[%emt
00:00:03]} Kg7 {[%clk 00:09:20]} {[%emt 00:00:20]} 34. Rd7 {[%clk 00:10:44]}
{[%emt 00:00:14]} d5 {[%clk 00:09:29]} {[%emt 00:00:02]} 35. h4 {[%clk
00:10:36]} {[%emt 00:00:18]} a5 {[%clk 00:09:36]} {[%emt 00:00:04]} 36. Ra7
{[%clk 00:10:40]} {[%emt 00:00:05]} a4 {[%clk 00:09:44]} {[%emt 00:00:01]} 37.
Kf1 {[%clk 00:10:48]} {[%emt 00:00:02]} a3 {[%clk 00:09:39]} {[%emt 00:00:16]}
38. Ra4 {[%emt 00:00:14]} Ra1+ {[%clk 00:09:38]} {[%emt 00:00:10]} 39. Ke2
{[%clk 00:10:45]} {[%emt 00:00:09]} a2 {[%clk 00:09:46]} {[%emt 00:00:02]} 40.
Ra3 {[%clk 00:10:51]} {[%emt 00:00:04]} h5 {[%clk 00:09:38]} {[%emt 00:00:18]}
41. f4 {[%clk 00:10:59]} {[%emt 00:00:02]} Rh1 {[%clk 00:09:37]} {[%emt
00:00:11]} 0-1



[ePGN "0.1;DGT LiveChess/2.2.6"]

[Event "MČR družstev mladších žáků 2024"]
[Site "Harrachov, Czech Republic"]
[Date "2024.06.15"]
[Round "6.4"]
[White "Gernert Tomas"]
[Black "Koutecka Magdalena"]
[Result "1-0"]
[TimeControl "25+10"]
[WhiteFideId "23750219"]
[BlackFideId "23752599"]
[WhiteElo "1409"]
[BlackElo "1085"]

1. c4 {[%clk 00:25:11]} {[%emt 00:00:09]} e5 {[%clk 00:25:17]} {[%emt
00:00:03]} 2. Nc3 {[%clk 00:25:20]} {[%emt 00:00:01]} Nf6 {[%clk 00:25:02]}
{[%emt 00:00:25]} 3. g3 {[%clk 00:25:11]} {[%emt 00:00:20]} Nc6 {[%clk
00:23:48]} {[%emt 00:01:23]} 4. Bg2 {[%clk 00:25:13]} {[%emt 00:00:09]} Bc5
{[%clk 00:23:06]} {[%emt 00:00:51]} 5. e4 {[%clk 00:25:19]} {[%emt 00:00:05]}
d6 {[%clk 00:22:15]} {[%emt 00:01:01]} 6. Nge2 {[%clk 00:25:23]} {[%emt
00:00:06]} Bg4 {[%clk 00:21:07]} {[%emt 00:01:19]} 7. d3 {[%clk 00:24:52]}
{[%emt 00:00:41]} O-O {[%clk 00:19:46]} {[%emt 00:01:31]} 8. O-O {[%clk
00:24:51]} {[%emt 00:00:11]} h6 {[%clk 00:17:18]} {[%emt 00:02:39]} 9. h3
{[%clk 00:24:41]} {[%emt 00:00:20]} Bh5 {[%clk 00:16:25]} {[%emt 00:01:02]} 10.
Kh2 {[%clk 00:24:24]} {[%emt 00:00:27]} Ne7 {[%clk 00:12:37]} {[%emt 00:03:59]}
11. f4 {[%clk 00:23:43]} {[%emt 00:00:52]} Re8 {[%clk 00:11:08]} {[%emt
00:01:38]} 12. f5 {[%clk 00:23:26]} {[%emt 00:00:28]} Bxe2 {[%clk 00:10:42]}
{[%emt 00:00:36]} 13. Qxe2 {[%clk 00:23:31]} {[%emt 00:00:05]} c6 {[%clk
00:10:27]} {[%emt 00:00:25]} 14. g4 {[%clk 00:21:14]} {[%emt 00:02:27]} Kh7
{[%clk 00:09:03]} {[%emt 00:01:32]} 15. h4 {[%clk 00:20:57]} {[%emt 00:00:28]}
Rh8 {[%clk 00:07:50]} {[%emt 00:01:25]} 16. Rh1 {[%clk 00:14:36]} {[%emt
00:06:31]} Kg8 {[%clk 00:06:52]} {[%emt 00:01:08]} 17. Kg3 {[%clk 00:14:19]}
{[%emt 00:00:27]} Kf8 {[%clk 00:05:38]} {[%emt 00:01:24]} 18. Bd2 {[%clk
00:13:59]} {[%emt 00:00:29]} Qb6 {[%clk 00:04:46]} {[%emt 00:01:01]} 19. Na4
{[%clk 00:12:04]} {[%emt 00:02:05]} Qc7 {[%clk 00:03:37]} {[%emt 00:01:17]} 20.
Nxc5 {[%clk 00:12:08]} {[%emt 00:00:08]} dxc5 {[%clk 00:03:46]} {[%emt
00:00:01]} 21. g5 {[%clk 00:11:39]} {[%emt 00:00:39]} Nfg8 {[%clk 00:03:16]}
{[%emt 00:00:39]} 22. Raf1 {[%clk 00:10:54]} {[%emt 00:00:56]} Nc8 {[%clk
00:02:54]} {[%emt 00:00:33]} 23. Be3 {[%clk 00:10:26]} {[%emt 00:00:37]} b6
{[%clk 00:02:43]} {[%emt 00:00:21]} 24. b3 {[%clk 00:08:45]} {[%emt 00:01:51]}
Nd6 {[%clk 00:02:03]} {[%emt 00:00:50]} 25. Qd2 {[%clk 00:08:02]} {[%emt
00:00:54]} Rd8 {[%clk 00:02:00]} {[%emt 00:00:12]} 26. Qc3 {[%clk 00:07:18]}
{[%emt 00:00:54]} Nb7 {[%clk 00:01:37]} {[%emt 00:00:33]} 27. f6 {[%clk
00:06:40]} {[%emt 00:00:49]} g6 {[%clk 00:01:30]} {[%emt 00:00:17]} 28. h5
{[%clk 00:06:23]} {[%emt 00:00:27]} Qd6 {[%emt 00:01:34]} 1-0



[ePGN "0.1;DGT LiveChess/2.2.6"]